[Event "NJSK 2018 Meisjes C"]
[Site "Assen, Netherlands"]
[Date "2018.05.04"]
[Round "6.2"]
[White "Basa, Manasvita"]
[Black "Hatzmann, Mirthe"]
[Result "1-0"]
[TimeControl "40/90m+30m+30sec/move"]
[WhiteElo "1402"]
[BlackElo "1323"]

1. e4 {[%clk 01:30:59]} e5 {[%clk 01:30:56]} {[%emt 00:00:04]} 2. Nf3 {[%clk
01:31:25]} {[%emt 00:00:04]} Nc6 {[%emt 00:00:07]} 3. Bc4 {[%clk 01:31:48]}
{[%emt 00:00:03]} Bc5 {[%clk 01:31:47]} {[%emt 00:00:06]} 4. d3 {[%clk
01:32:10]} {[%emt 00:00:08]} Nf6 {[%clk 01:31:59]} {[%emt 00:00:18]} 5. Nc3
{[%clk 01:32:34]} {[%emt 00:00:06]} h6 {[%clk 01:31:58]} {[%emt 00:00:31]} 6.
a3 {[%clk 01:32:46]} {[%emt 00:00:17]} d6 {[%clk 01:31:43]} {[%emt 00:00:45]} 7.
Na4 {[%clk 01:33:09]} {[%emt 00:00:07]} Bb6 {[%clk 01:31:34]} {[%emt 00:00:40]}
8. Nxb6 {[%clk 01:33:14]} {[%emt 00:00:25]} axb6 {[%clk 01:31:55]} {[%emt
00:00:10]} 9. h3 {[%clk 01:33:34]} {[%emt 00:00:09]} Be6 {[%clk 01:31:56]}
{[%emt 00:00:29]} 10. Bb5 {[%clk 01:29:33]} {[%emt 00:04:31]} O-O {[%clk
01:27:34]} {[%emt 00:04:52]} 11. O-O {[%clk 01:29:27]} {[%emt 00:00:35]} Na7
{[%clk 01:21:05]} {[%emt 00:06:59]} 12. Ba4 {[%clk 01:26:59]} {[%emt 00:02:59]}
b5 {[%clk 01:18:13]} {[%emt 00:03:22]} 13. Bb3 {[%clk 01:27:21]} {[%emt
00:00:08]} Bxb3 {[%clk 01:17:45]} {[%emt 00:00:58]} 14. cxb3 {[%clk 01:27:45]}
{[%emt 00:00:06]} Nc6 {[%clk 01:15:40]} {[%emt 00:02:35]} 15. Be3 {[%clk
01:19:13]} {[%emt 00:09:01]} d5 {[%clk 01:10:16]} {[%emt 00:05:55]} 16. Qc2
{[%clk 01:19:10]} {[%emt 00:00:33]} d4 {[%clk 01:05:14]} {[%emt 00:05:32]} 17.
Bd2 {[%clk 01:19:31]} {[%emt 00:00:08]} Qd6 {[%clk 01:03:32]} {[%emt 00:02:12]}
18. Nh4 {[%clk 01:18:25]} {[%emt 00:01:36]} Nd7 {[%clk 00:54:18]} {[%emt
00:09:44]} 19. Nf5 {[%clk 01:18:24]} {[%emt 00:00:31]} Qe6 {[%clk 00:52:59]}
{[%emt 00:01:50]} 20. f4 {[%clk 01:17:52]} {[%emt 00:01:01]} f6 {[%clk
00:52:02]} {[%emt 00:01:27]} 21. b4 {[%clk 01:16:32]} {[%emt 00:01:50]} Rac8
{[%clk 00:45:13]} {[%emt 00:07:19]} 22. Qd1 {[%clk 01:12:03]} {[%emt 00:05:00]}
Ne7 {[%clk 00:41:29]} {[%emt 00:04:14]} 23. Nxe7+ {[%clk 01:12:14]} {[%emt
00:00:18]} Qxe7 {[%clk 00:41:53]} {[%emt 00:00:07]} 24. f5 {[%clk 01:12:38]}
{[%emt 00:00:05]} Nb6 {[%clk 00:39:06]} {[%emt 00:03:17]} 25. Qg4 {[%clk
01:12:39]} {[%emt 00:00:29]} Kh8 {[%clk 00:39:04]} {[%emt 00:00:33]} 26. Qf3
{[%clk 01:09:07]} {[%emt 00:04:01]} Qf7 {[%clk 00:36:05]} {[%emt 00:03:29]} 27.
h4 {[%clk 01:08:07]} {[%emt 00:01:30]} h5 {[%clk 00:31:32]} {[%emt 00:05:03]}
28. g4 {[%clk 01:07:11]} {[%emt 00:01:26]} g6 {[%clk 00:28:34]} {[%emt
00:03:28]} 29. Kf2 {[%clk 01:05:18]} {[%emt 00:02:24]} hxg4 {[%clk 00:23:47]}
{[%emt 00:05:16]} 30. Qxg4 {[%clk 01:05:39]} {[%emt 00:00:09]} Rg8 {[%clk
00:23:04]} {[%emt 00:01:13]} 31. Rg1 {[%clk 01:04:26]} {[%emt 00:01:43]} Qh7
{[%clk 00:20:49]} {[%emt 00:02:46]} 32. fxg6 {[%clk 01:03:45]} {[%emt
00:01:11]} Rxg6 {[%clk 00:15:09]} {[%emt 00:06:10]} 33. Qxg6 {[%clk 01:04:03]}
{[%emt 00:00:11]} Qxg6 {[%clk 00:14:42]} {[%emt 00:00:57]} 34. Rxg6 {[%clk
01:04:26]} {[%emt 00:00:06]} 1-0

[Event "NJSK 2018 Meisjes C"]
[Site "Assen, Netherlands"]
[Date "2018.05.04"]
[Round "6.3"]
[White "De Putter, Nina"]
[Black "De Zoeten, Cato"]
[Result "1-0"]
[TimeControl "40/90m+30m+30sec/move"]
[WhiteElo "1672"]
[BlackElo "1496"]

1. e4 {[%clk 01:30:59]} {[%emt 00:00:02]} c5 {[%clk 01:30:54]} {[%emt
00:00:05]} 2. Nc3 {[%clk 01:31:24]} {[%emt 00:00:05]} a6 {[%clk 01:30:51]}
{[%emt 00:00:33]} 3. f4 {[%clk 01:31:47]} {[%emt 00:00:07]} b5 {[%clk
01:28:39]} {[%emt 00:02:42]} 4. a4 {[%clk 01:25:53]} {[%emt 00:06:24]} b4
{[%clk 01:24:01]} {[%emt 00:05:07]} 5. Nce2 {[%clk 01:23:48]} {[%emt 00:02:35]}
Bb7 {[%clk 01:21:00]} {[%emt 00:03:32]} 6. Ng3 {[%clk 01:23:35]} {[%emt
00:00:44]} d6 {[%clk 01:19:35]} {[%emt 00:01:55]} 7. Nf3 {[%clk 01:23:04]}
{[%emt 00:01:00]} Nf6 {[%clk 01:17:54]} {[%emt 00:02:11]} 8. Bc4 {[%clk
01:17:56]} {[%emt 00:05:38]} e6 {[%clk 01:08:47]} {[%emt 00:09:36]} 9. d3
{[%clk 01:15:29]} {[%emt 00:02:58]} Be7 {[%clk 01:06:42]} {[%emt 00:02:34]} 10.
O-O {[%clk 01:14:26]} {[%emt 00:01:33]} O-O {[%clk 01:06:15]} {[%emt 00:00:59]}
11. Qe1 {[%clk 01:10:53]} {[%emt 00:04:02]} Re8 {[%clk 00:58:10]} {[%emt
00:08:35]} 12. e5 {[%clk 00:53:54]} {[%emt 00:17:29]} Nd5 {[%clk 00:48:54]}
{[%emt 00:09:45]} 13. f5 {[%clk 00:47:15]} {[%emt 00:07:11]} exf5 {[%clk
00:42:33]} {[%emt 00:06:50]} 14. Nxf5 {[%clk 00:45:32]} {[%emt 00:02:13]} dxe5
{[%clk 00:41:11]} {[%emt 00:01:53]} 15. Qxe5 {[%clk 00:39:40]} {[%emt
00:06:22]} Bf8 {[%clk 00:30:37]} {[%emt 00:11:04]} 16. Qg3 {[%clk 00:38:01]}
{[%emt 00:02:08]} Qf6 {[%clk 00:25:02]} {[%emt 00:06:05]} 17. N3h4 {[%clk
00:30:06]} {[%emt 00:08:25]} Kh8 {[%clk 00:23:01]} {[%emt 00:02:31]} 18. Ne3
{[%clk 00:28:17]} {[%emt 00:02:18]} Qe5 {[%clk 00:15:01]} {[%emt 00:08:31]} 19.
Qxe5 {[%clk 00:26:59]} {[%emt 00:01:49]} Rxe5 {[%clk 00:15:29]} {[%emt
00:00:02]} 20. Rxf7 {[%clk 00:24:56]} Bd6 {[%clk 00:12:18]} {[%emt 00:06:14]}
21. Rxb7 {[%clk 00:23:37]} {[%emt 00:01:49]} Nxe3 {[%clk 00:12:15]} {[%emt
00:00:33]} 22. Bxe3 {[%clk 00:23:54]} {[%emt 00:00:13]} Rxe3 {[%emt 00:00:27]}
23. Nf5 {[%clk 00:24:03]} 1-0

[Event "NJSK 2018 Meisjes C"]
[Site "Assen, Netherlands"]
[Date "2018.05.04"]
[Round "6.4"]
[White "Den Heijer, Rolinde"]
[Black "Honkoop, Stella"]
[Result "1-0"]
[TimeControl "40/90m+30m+30sec/move"]
[WhiteElo "1538"]
[BlackElo "1583"]

1. e4 {[%clk 01:30:57]} {[%emt 00:00:04]} d6 {[%clk 01:30:56]} {[%emt
00:00:04]} 2. Nf3 {[%clk 01:31:19]} {[%emt 00:00:08]} Nf6 {[%clk 01:31:17]}
{[%emt 00:00:10]} 3. Nc3 {[%clk 01:31:37]} {[%emt 00:00:11]} Nbd7 {[%clk
01:31:18]} {[%emt 00:00:30]} 4. Bc4 {[%clk 01:31:38]} {[%emt 00:00:27]} h6
{[%clk 01:31:20]} {[%emt 00:00:29]} 5. d4 {[%clk 01:31:38]} {[%emt 00:00:30]}
e5 {[%clk 01:31:39]} {[%emt 00:00:11]} 6. dxe5 {[%clk 01:31:42]} {[%emt
00:00:26]} dxe5 {[%clk 01:32:03]} {[%emt 00:00:06]} 7. Be3 {[%clk 01:31:53]}
{[%emt 00:00:19]} c6 {[%clk 01:32:20]} {[%emt 00:00:13]} 8. a3 {[%clk
01:32:01]} {[%emt 00:00:22]} Qc7 {[%clk 01:31:38]} {[%emt 00:01:13]} 9. Qd2
{[%clk 01:31:13]} {[%emt 00:01:17]} Be7 {[%clk 01:31:39]} {[%emt 00:00:30]} 10.
O-O-O {[%clk 01:30:55]} {[%emt 00:00:47]} Nf8 {[%clk 01:31:06]} {[%emt
00:01:03]} 11. h3 {[%clk 01:30:09]} {[%emt 00:01:16]} Be6 {[%clk 01:29:50]}
{[%emt 00:01:47]} 12. Be2 {[%clk 01:29:46]} {[%emt 00:00:52]} N8d7 {[%clk
01:26:56]} {[%emt 00:03:24]} 13. Nh4 {[%clk 01:28:18]} {[%emt 00:01:58]} b5
{[%clk 01:19:36]} {[%emt 00:07:51]} 14. Nf5 {[%clk 01:26:03]} {[%emt 00:02:44]}
Bxf5 {[%clk 01:18:15]} {[%emt 00:01:51]} 15. exf5 {[%clk 01:26:26]} {[%emt
00:00:07]} b4 {[%clk 01:18:30]} {[%emt 00:00:16]} 16. axb4 {[%clk 01:26:36]}
{[%emt 00:00:18]} Bxb4 {[%clk 01:18:52]} {[%emt 00:00:08]} 17. Qd3 {[%clk
01:26:25]} {[%emt 00:00:42]} Qa5 {[%clk 01:14:00]} {[%emt 00:05:23]} 18. Nb1
{[%clk 01:23:48]} {[%emt 00:03:06]} Nc5 {[%clk 01:04:15]} {[%emt 00:10:16]} 19.
Qc4 {[%clk 01:19:50]} {[%emt 00:04:27]} Ncd7 {[%clk 00:56:05]} {[%emt
00:08:40]} 20. Qxc6 {[%clk 01:15:24]} {[%emt 00:04:56]} O-O {[%clk 00:54:46]}
{[%emt 00:01:49]} 21. c3 {[%clk 01:14:30]} {[%emt 00:01:23]} Be7 {[%clk
00:51:56]} {[%emt 00:03:21]} 22. g4 {[%clk 01:11:14]} {[%emt 00:03:45]} Rfc8
{[%clk 00:49:42]} {[%emt 00:02:45]} 23. Qa6 {[%clk 01:09:42]} {[%emt 00:01:57]}
Qb4 {[%clk 00:45:40]} {[%emt 00:04:38]} 24. Rd2 {[%clk 01:06:44]} {[%emt
00:03:26]} Nc5 {[%clk 00:38:22]} {[%emt 00:07:49]} 25. Bxc5 {[%clk 01:04:58]}
{[%emt 00:02:15]} Rxc5 {[%clk 00:37:53]} {[%emt 00:00:59]} 26. Rc2 {[%clk
01:01:04]} {[%emt 00:04:25]} Qf4+ {[%clk 00:33:52]} {[%emt 00:04:32]} 27. Rd2
{[%clk 00:58:23]} {[%emt 00:03:10]} Qb4 {[%clk 00:29:11]} {[%emt 00:05:10]} 28.
Qa3 {[%clk 00:52:15]} {[%emt 00:06:38]} Qb7 {[%clk 00:28:00]} {[%emt 00:01:42]}
29. Rhd1 {[%clk 00:49:51]} {[%emt 00:02:53]} Kh7 {[%clk 00:22:33]} {[%emt
00:05:58]} 30. Qa2 {[%clk 00:47:40]} {[%emt 00:02:40]} Rf8 {[%clk 00:19:19]}
{[%emt 00:03:45]} 31. Qa4 {[%clk 00:38:08]} {[%emt 00:10:02]} Qc7 {[%clk
00:16:15]} {[%emt 00:03:34]} 32. f3 {[%clk 00:37:27]} {[%emt 00:01:10]} Ra5
{[%clk 00:15:28]} {[%emt 00:01:17]} 33. Qc4 {[%clk 00:36:48]} {[%emt 00:01:09]}
Rc5 {[%clk 00:15:45]} {[%emt 00:00:14]} 34. Qa4 {[%clk 00:37:06]} {[%emt
00:00:12]} Qb7 {[%clk 00:14:09]} {[%emt 00:02:07]} 35. h4 {[%clk 00:36:42]}
{[%emt 00:00:53]} Rb8 {[%clk 00:13:11]} {[%emt 00:01:28]} 36. Qc2 {[%clk
00:35:31]} {[%emt 00:01:40]} Nd5 {[%clk 00:12:23]} {[%emt 00:01:19]} 37. Qe4
{[%clk 00:34:11]} {[%emt 00:01:50]} Qb3 {[%clk 00:07:52]} {[%emt 00:05:01]} 38.
f6 {[%clk 00:32:37]} {[%emt 00:02:04]} g6 {[%clk 00:06:14]} {[%emt 00:02:08]}
39. fxe7 {[%clk 00:32:21]} {[%emt 00:00:46]} Nb4 {[%clk 00:05:42]} {[%emt
00:01:02]} 40. Rc2 {[%clk 00:31:19]} {[%emt 00:01:31]} Nxc2 {[%clk 00:03:03]}
{[%emt 00:03:10]} 41. Qxc2 {[%clk 00:31:42]} {[%emt 00:00:06]} Qb6 {[%clk
00:00:39]} {[%emt 00:02:55]} 42. Rd7 {[%clk 00:31:17]} {[%emt 00:00:54]} Kg7
{[%clk 00:28:46]} {[%emt 00:02:24]} 43. Qd2 {[%clk 01:00:51]} {[%emt 00:00:55]}
Re8 {[%clk 00:27:28]} {[%emt 00:01:48]} 44. Na3 {[%clk 00:59:33]} {[%emt
00:01:49]} Qa5 {[%clk 00:24:28]} {[%emt 00:03:31]} 45. Nc2 {[%clk 00:57:53]}
{[%emt 00:02:09]} Qb6 {[%clk 00:23:24]} {[%emt 00:01:34]} 46. f4 {[%clk
00:56:30]} {[%emt 00:01:53]} Kh7 {[%clk 00:20:02]} {[%emt 00:03:52]} 47. h5
{[%clk 00:55:41]} {[%emt 00:01:18]} Qe6 {[%clk 00:18:25]} {[%emt 00:02:07]} 48.
hxg6 {[%clk 00:55:39]} {[%emt 00:00:32]} fxg6 {[%clk 00:18:26]} {[%emt
00:00:29]} 49. Rxa7 {[%clk 00:55:23]} {[%emt 00:00:47]} Rxe7 {[%clk 00:17:31]}
{[%emt 00:01:24]} 50. Ra6 {[%clk 00:55:35]} {[%emt 00:00:18]} Rc6 {[%clk
00:17:09]} {[%emt 00:00:53]} 51. Rxc6 {[%clk 00:55:33]} {[%emt 00:00:40]} Qxc6
{[%clk 00:17:34]} 52. fxe5 {[%clk 00:55:45]} {[%emt 00:00:16]} Rxe5 {[%clk
00:17:56]} {[%emt 00:00:06]} 53. Nd4 {[%clk 00:55:05]} {[%emt 00:01:11]} Qa4
{[%clk 00:16:44]} {[%emt 00:01:42]} 54. Qf4 {[%clk 00:54:41]} {[%emt 00:00:52]}
Qa1+ {[%clk 00:16:07]} {[%emt 00:01:08]} 55. Kc2 {[%clk 00:55:03]} {[%emt
00:00:08]} Qa4+ {[%clk 00:16:25]} {[%emt 00:00:12]} 56. Kd2 {[%clk 00:54:34]}
{[%emt 00:00:59]} Qe8 {[%emt 00:00:44]} 57. Kd3 {[%clk 00:54:06]} {[%emt
00:00:56]} g5 {[%clk 00:15:21]} {[%emt 00:01:23]} 58. Qf3 {[%clk 00:54:12]}
{[%emt 00:00:23]} Qg6+ {[%clk 00:15:36]} {[%emt 00:00:16]} 59. Kd2 {[%clk
00:53:50]} {[%emt 00:00:51]} Kg7 {[%clk 00:14:31]} {[%emt 00:01:36]} 60. Qb7+
{[%clk 00:53:59]} {[%emt 00:00:19]} Kf8 {[%clk 00:14:13]} {[%emt 00:00:50]} 61.
Qb8+ {[%clk 00:53:58]} {[%emt 00:00:30]} Re8 {[%clk 00:14:32]} {[%emt
00:00:12]} 62. Qb4+ {[%clk 00:53:59]} {[%emt 00:00:28]} Kg7 {[%clk 00:14:19]}
{[%emt 00:00:44]} 63. Nf5+ {[%clk 00:53:47]} {[%emt 00:00:40]} Kf6 {[%clk
00:13:44]} {[%emt 00:01:07]} 64. Qd6+ {[%clk 00:53:09]} {[%emt 00:01:06]} Re6
{[%clk 00:13:50]} {[%emt 00:00:26]} 65. Qd8+ {[%clk 00:53:23]} {[%emt
00:00:15]} Kf7 {[%clk 00:13:33]} {[%emt 00:00:48]} 66. Bc4 {[%clk 00:53:17]}
{[%emt 00:00:36]} 1-0

[Event "NJSK 2018 Meisjes C"]
[Site "Assen, Netherlands"]
[Date "2018.05.04"]
[Round "6.5"]
[White "Raulji, Kavya"]
[Black "Van Essen, Marieke"]
[Result "0-1"]
[TimeControl "40/90m+30m+30sec/move"]
[WhiteElo "1394"]
[BlackElo "1282"]

1. e4 {[%clk 01:30:59]} {[%emt 00:00:01]} e5 {[%clk 01:30:58]} {[%emt
00:00:03]} 2. Nf3 {[%clk 01:31:23]} {[%emt 00:00:04]} Nc6 {[%clk 01:31:25]}
{[%emt 00:00:04]} 3. Bc4 {[%clk 01:31:49]} {[%emt 00:00:04]} Bc5 {[%clk
01:31:50]} {[%emt 00:00:05]} 4. c3 {[%clk 01:32:12]} {[%emt 00:00:07]} Nf6
{[%clk 01:32:14]} {[%emt 00:00:05]} 5. d3 {[%clk 01:32:38]} {[%emt 00:00:04]}
d6 {[%clk 01:32:30]} {[%emt 00:00:15]} 6. O-O {[%clk 01:31:43]} {[%emt
00:01:25]} O-O {[%clk 01:32:32]} {[%emt 00:00:28]} 7. a4 {[%clk 01:31:30]}
{[%emt 00:00:42]} a5 {[%clk 01:32:46]} {[%emt 00:00:16]} 8. Nbd2 {[%clk
01:30:24]} {[%emt 00:01:36]} Bg4 {[%clk 01:31:59]} {[%emt 00:01:18]} 9. h3
{[%clk 01:30:43]} {[%emt 00:00:10]} Be6 {[%clk 01:32:21]} {[%emt 00:00:08]} 10.
Bb3 {[%clk 01:26:46]} {[%emt 00:04:27]} d5 {[%clk 01:27:22]} {[%emt 00:05:30]}
11. exd5 {[%clk 01:26:09]} {[%emt 00:01:07]} Bxd5 {[%clk 01:27:44]} {[%emt
00:00:08]} 12. Bc2 {[%clk 01:20:27]} {[%emt 00:06:11]} Re8 {[%clk 01:25:06]}
{[%emt 00:03:09]} 13. Ne4 {[%clk 01:15:10]} {[%emt 00:05:47]} Nxe4 {[%clk
01:24:04]} {[%emt 00:01:32]} 14. dxe4 {[%clk 01:15:29]} {[%emt 00:00:10]} Bc4
{[%clk 01:24:23]} {[%emt 00:00:12]} 15. Re1 {[%clk 01:13:45]} {[%emt 00:02:14]}
Re6 {[%clk 01:17:35]} {[%emt 00:07:18]} 16. Qxd8+ {[%clk 01:08:57]} {[%emt
00:05:17]} Rxd8 {[%clk 01:17:53]} {[%emt 00:00:12]} 17. Be3 {[%clk 01:04:46]}
{[%emt 00:04:41]} Bxe3 {[%clk 01:12:56]} {[%emt 00:05:28]} 18. Rxe3 {[%clk
01:05:05]} {[%emt 00:00:10]} Red6 {[%clk 01:13:03]} {[%emt 00:00:24]} 19. b3
{[%clk 01:00:53]} {[%emt 00:04:42]} Bd3 {[%clk 01:12:27]} {[%emt 00:01:05]} 20.
Bxd3 {[%clk 00:59:00]} {[%emt 00:02:23]} Rxd3 {[%clk 01:12:27]} {[%emt
00:00:31]} 21. Rxd3 {[%clk 00:55:25]} {[%emt 00:04:04]} Rxd3 {[%clk 01:12:50]}
{[%emt 00:00:07]} 22. Rc1 {[%clk 00:55:29]} {[%emt 00:00:26]} f6 {[%clk
01:11:44]} {[%emt 00:01:37]} 23. Kf1 {[%clk 00:54:14]} {[%emt 00:01:45]} Nd8
{[%clk 01:05:03]} {[%emt 00:07:11]} 24. Ke2 {[%clk 00:53:51]} {[%emt 00:00:52]}
Rd6 {[%clk 01:04:52]} {[%emt 00:00:32]} 25. Nd2 {[%clk 00:37:44]} {[%emt
00:16:46]} b6 {[%clk 01:01:55]} {[%emt 00:03:28]} 26. Nc4 {[%clk 00:37:28]}
{[%emt 00:00:44]} Rd7 {[%clk 01:01:27]} {[%emt 00:00:59]} 27. Ne3 {[%clk
00:33:40]} {[%emt 00:04:18]} Ne6 {[%clk 00:58:39]} {[%emt 00:03:18]} 28. Rb1
{[%clk 00:24:33]} {[%emt 00:09:38]} Nf4+ {[%clk 00:54:28]} {[%emt 00:04:40]} 29.
Kf3 {[%clk 00:23:55]} {[%emt 00:01:06]} Rd3 {[%clk 00:53:32]} {[%emt 00:01:27]}
30. Rc1 {[%clk 00:22:36]} {[%emt 00:01:50]} Kf7 {[%clk 00:51:55]} {[%emt
00:02:08]} 31. b4 {[%clk 00:21:45]} {[%emt 00:01:20]} Ke6 {[%clk 00:40:48]}
{[%emt 00:11:37]} 32. b5 {[%clk 00:17:39]} {[%emt 00:04:36]} g6 {[%clk
00:39:50]} {[%emt 00:01:28]} 33. Rc2 {[%clk 00:17:06]} {[%emt 00:01:03]} f5
{[%clk 00:39:24]} {[%emt 00:00:56]} 34. exf5+ {[%clk 00:15:42]} {[%emt
00:01:53]} gxf5 {[%clk 00:39:45]} {[%emt 00:00:09]} 35. h4 {[%clk 00:14:27]}
{[%emt 00:01:46]} Nd5 {[%clk 00:38:48]} {[%emt 00:01:26]} 36. c4 {[%clk
00:12:46]} {[%emt 00:02:12]} Nb4 {[%clk 00:38:22]} {[%emt 00:00:57]} 37. Ke2
{[%clk 00:11:52]} {[%emt 00:01:23]} e4 {[%clk 00:35:57]} {[%emt 00:02:55]} 38.
Rc1 {[%clk 00:09:28]} {[%emt 00:02:54]} Ra3 {[%clk 00:34:43]} {[%emt 00:01:45]}
39. Nd5 {[%clk 00:07:17]} {[%emt 00:02:41]} Nxd5 {[%clk 00:31:15]} {[%emt
00:03:58]} 40. cxd5+ {[%clk 00:07:41]} {[%emt 00:00:06]} Kd6 {[%clk 00:31:39]}
{[%emt 00:00:06]} 41. Rc6+ {[%clk 00:06:04]} {[%emt 00:02:06]} Kxd5 {[%clk
00:31:22]} {[%emt 00:00:48]} 42. Rxc7 {[%clk 00:06:28]} {[%emt 00:00:06]} Rxa4
{[%clk 00:29:47]} {[%emt 00:02:05]} 43. Rxh7 {[%clk 00:06:49]} {[%emt
00:00:09]} Ra2+ {[%clk 00:28:17]} {[%emt 00:02:01]} 44. Ke3 {[%clk 00:03:26]}
{[%emt 00:03:51]} a4 {[%clk 00:20:33]} {[%emt 00:08:15]} 45. h5 {[%clk
00:02:26]} {[%emt 00:01:30]} a3 {[%clk 00:20:24]} {[%emt 00:00:38]} 46. h6
{[%clk 00:01:06]} {[%emt 00:01:50]} f4+ {[%clk 00:19:45]} {[%emt 00:01:11]} 47.
Kxf4 {[%clk 00:00:50]} {[%emt 00:00:45]} Rxf2+ {[%clk 00:20:10]} {[%emt
00:00:05]} 48. Ke3 {[%clk 00:30:06]} {[%emt 00:01:13]} a2 {[%clk 00:48:24]}
{[%emt 00:02:17]} 49. Ra7 {[%clk 00:29:42]} {[%emt 00:00:53]} Rxg2 {[%clk
00:47:19]} {[%emt 00:01:35]} 50. h7 {[%clk 00:29:54]} {[%emt 00:00:18]} Rh2
{[%clk 00:47:03]} {[%emt 00:00:47]} 51. Rxa2 {[%clk 00:24:28]} {[%emt
00:05:56]} Rxh7 {[%clk 00:47:19]} {[%emt 00:00:13]} 52. Rd2+ {[%clk 00:23:52]}
{[%emt 00:01:06]} Ke5 {[%clk 00:47:21]} {[%emt 00:00:29]} 53. Rd8 {[%clk
00:23:00]} {[%emt 00:01:22]} Rh3+ {[%clk 00:41:38]} {[%emt 00:06:13]} 54. Ke2
{[%clk 00:22:50]} {[%emt 00:00:39]} Rb3 {[%clk 00:40:57]} {[%emt 00:01:12]} 55.
Rh8 {[%clk 00:22:58]} {[%emt 00:00:21]} Kd4 {[%clk 00:37:51]} {[%emt 00:03:37]}
56. Rh5 {[%clk 00:19:35]} {[%emt 00:03:52]} Rb2+ {[%clk 00:36:17]} {[%emt
00:02:04]} 57. Kd1 {[%clk 00:19:23]} {[%emt 00:00:41]} e3 {[%clk 00:33:03]}
{[%emt 00:03:46]} 58. Kc1 {[%clk 00:16:24]} {[%emt 00:03:28]} e2 {[%clk
00:28:33]} {[%emt 00:05:00]} 59. Rh1 {[%clk 00:15:00]} {[%emt 00:01:51]} Rxb5
{[%clk 00:28:34]} {[%emt 00:00:33]} 60. Re1 {[%clk 00:13:26]} {[%emt 00:02:02]}
Kd3 {[%clk 00:28:11]} {[%emt 00:00:55]} 61. Rh1 {[%clk 00:12:09]} {[%emt
00:01:46]} Re5 {[%clk 00:28:09]} {[%emt 00:00:33]} 62. Re1 {[%clk 00:10:59]}
{[%emt 00:01:39]} Rc5+ {[%clk 00:27:54]} {[%emt 00:00:45]} 63. Kb1 {[%clk
00:10:31]} {[%emt 00:00:57]} Kd2 {[%clk 00:28:12]} {[%emt 00:00:14]} 64. Rxe2+
{[%clk 00:10:36]} {[%emt 00:00:24]} Kxe2 {[%clk 00:28:32]} {[%emt 00:00:11]} 65.
Ka2 {[%clk 00:10:59]} {[%emt 00:00:07]} Rb5 {[%clk 00:28:48]} {[%emt 00:00:14]}
66. Ka3 {[%clk 00:11:18]} {[%emt 00:00:10]} Kd2 {[%clk 00:28:51]} {[%emt
00:00:28]} 67. Ka4 {[%clk 00:11:40]} {[%emt 00:00:08]} Rb1 {[%clk 00:29:18]}
{[%emt 00:00:03]} 68. Ka3 {[%clk 00:12:05]} {[%emt 00:00:05]} Kc3 {[%clk
00:28:24]} {[%emt 00:01:24]} 69. Ka2 {[%clk 00:12:22]} {[%emt 00:00:13]} Rb5
{[%clk 00:28:41]} {[%emt 00:00:13]} 70. Ka1 {[%clk 00:12:44]} {[%emt 00:00:08]}
Kc2 {[%clk 00:29:08]} {[%emt 00:00:03]} 71. Ka2 {[%clk 00:13:09]} {[%emt
00:00:05]} Ra5# {[%clk 00:29:37]} {[%emt 00:00:02]} 0-1

[Event "NJSK 2018 Meisjes C"]
[Site "Assen, Netherlands"]
[Date "2018.05.04"]
[Round "6.6"]
[White "Martinez, Sara"]
[Black "Morote, Luna"]
[Result "1/2-1/2"]
[TimeControl "40/90m+30m+30sec/move"]
[WhiteElo "1446"]
[BlackElo "1415"]

1. e4 {[%clk 01:30:58]} {[%emt 00:00:03]} c5 {[%clk 01:30:57]} {[%emt
00:00:03]} 2. Nf3 {[%clk 01:31:23]} {[%emt 00:00:03]} d6 {[%clk 01:31:24]}
{[%emt 00:00:04]} 3. d4 {[%clk 01:31:49]} {[%emt 00:00:04]} cxd4 {[%clk
01:31:52]} {[%emt 00:00:03]} 4. Qxd4 {[%clk 01:32:13]} {[%emt 00:00:05]} Nf6
{[%clk 01:32:09]} {[%emt 00:00:12]} 5. Nc3 {[%clk 01:32:24]} {[%emt 00:00:19]}
e5 {[%clk 01:32:17]} {[%emt 00:00:22]} 6. Qd3 {[%clk 01:32:09]} {[%emt
00:00:46]} Be7 {[%clk 01:32:17]} {[%emt 00:00:31]} 7. Bg5 {[%clk 01:32:15]}
{[%emt 00:00:23]} h6 {[%clk 01:31:39]} {[%emt 00:01:09]} 8. Bxf6 {[%clk
01:31:57]} {[%emt 00:00:48]} gxf6 {[%clk 01:29:06]} {[%emt 00:03:02]} 9. Nd5
{[%clk 01:27:44]} {[%emt 00:04:44]} a6 {[%clk 01:27:51]} {[%emt 00:01:45]} 10.
Nxe7 {[%clk 01:14:02]} {[%emt 00:14:12]} Kxe7 {[%clk 01:23:43]} {[%emt
00:04:38]} 11. Qb3 {[%clk 01:03:05]} {[%emt 00:11:27]} Qc7 {[%clk 01:19:22]}
{[%emt 00:04:51]} 12. Bc4 {[%clk 00:56:14]} {[%emt 00:07:21]} Be6 {[%clk
01:15:12]} {[%emt 00:04:39]} 13. Bxe6 {[%clk 00:53:52]} {[%emt 00:02:53]} fxe6
{[%clk 01:15:26]} {[%emt 00:00:16]} 14. Nh4 {[%clk 00:54:07]} {[%emt 00:00:15]}
Rg8 {[%clk 01:15:34]} {[%emt 00:00:21]} 15. O-O-O {[%clk 00:53:40]} {[%emt
00:00:58]} Nd7 {[%clk 01:12:08]} {[%emt 00:03:55]} 16. Qe3 {[%clk 00:42:47]}
{[%emt 00:11:21]} Rac8 {[%clk 01:10:35]} {[%emt 00:02:05]} 17. Rd2 {[%clk
00:42:39]} {[%emt 00:00:39]} Qc4 {[%clk 01:03:05]} {[%emt 00:08:00]} 18. Kb1
{[%clk 00:41:12]} {[%emt 00:01:56]} Nf8 {[%clk 01:00:52]} {[%emt 00:02:44]} 19.
Rhd1 {[%clk 00:38:39]} {[%emt 00:03:02]} Rc6 {[%clk 00:55:44]} {[%emt
00:05:38]} 20. f3 {[%clk 00:32:38]} {[%emt 00:06:31]} Rh8 {[%clk 00:53:07]}
{[%emt 00:03:07]} 21. g3 {[%clk 00:29:53]} {[%emt 00:03:16]} Qb5 {[%clk
00:45:24]} {[%emt 00:08:12]} 22. Qa3 {[%clk 00:24:13]} {[%emt 00:06:09]} Qc4
{[%clk 00:43:55]} {[%emt 00:01:59]} 23. Ng2 {[%clk 00:22:57]} {[%emt 00:01:48]}
Nd7 {[%clk 00:35:09]} {[%emt 00:09:16]} 24. Ne3 {[%clk 00:20:16]} {[%emt
00:03:11]} Qc5 {[%clk 00:34:50]} {[%emt 00:00:48]} 25. Qb3 {[%clk 00:19:41]}
{[%emt 00:01:04]} b5 {[%clk 00:34:31]} {[%emt 00:00:50]} 26. Qd3 {[%clk
00:17:50]} {[%emt 00:02:19]} Rhc8 {[%clk 00:33:49]} {[%emt 00:01:14]} 27. Rg2
{[%clk 00:13:46]} {[%emt 00:04:35]} a5 {[%clk 00:31:35]} {[%emt 00:02:43]} 28.
f4 {[%clk 00:11:27]} {[%emt 00:02:49]} 1/2-1/2